bitfinex/quotes_BTCUSD_20240623
["timestamp","ask_amount","ask_price","bid_price","bid_amount"]
[1719178999810,0.20677912,63927.0,63926.0,0.004935]
[1719179000929,0.15397912,63927.0,63926.0,0.004935]
[1719179001157,0.15404785,63927.0,63926.0,0.004935]
[1719179001273,0.20684785,63927.0,63926.0,0.004935]
[1719179002141,0.15404785,63927.0,63926.0,0.004935]
[1719179002328,0.07032229,63927.0,63926.0,0.004935]
[1719179002535,0.08986143,63927.0,63926.0,0.004935]
[1719179005454,0.07032229,63927.0,63926.0,0.004935]
[1719179005606,0.08985745,63927.0,63926.0,0.004935]
[1719179008675,0.08986012,63927.0,63926.0,0.004935]
[1719179009080,0.01752229,63927.0,63926.0,0.004935]
[1719179009280,0.08985941,63927.0,63926.0,0.004935]
[1719179010066,0.03705941,63927.0,63926.0,0.004935]
[1719179010268,0.08985941,63927.0,63926.0,0.004935]
[1719179010470,0.07032229,63927.0,63926.0,0.004935]
[1719179010651,0.09000738,63927.0,63926.0,0.004935]
[1719179011636,0.09000738,63927.0,63926.0,0.005337]
[1719179011637,0.0906457,63927.0,63926.0,0.005337]
[1719179012470,0.20812787,63927.0,63926.0,0.005337]
[1719179014671,0.07032229,63927.0,63926.0,0.005337]
[1719179014894,0.20818494,63927.0,63926.0,0.005337]
[1719179015554,0.09070014,63927.0,63926.0,0.005337]
[1719179016161,0.08300014,63927.0,63926.0,0.005337]
[1719179017845,0.0830178,63927.0,63926.0,0.005337]
[1719179018449,0.08301583,63927.0,63926.0,0.005337]
[1719179020840,0.08301749,63927.0,63926.0,0.005337]
[1719179021289,0.20050163,63927.0,63926.0,0.005337]
[1719179023644,0.20031336,63927.0,63926.0,0.005337]
[1719179024051,0.20031028,63927.0,63926.0,0.005337]
[1719179025931,0.35673828,63927.0,63926.0,0.005337]
[1719179027252,0.35675145,63927.0,63926.0,0.005337]
[1719179027917,0.30397917,63927.0,63926.0,0.005337]
[1719179028125,0.35677917,63927.0,63926.0,0.005337]
[1719179030427,0.35675398,63927.0,63926.0,0.005337]
[1719179030921,0.18646499,63927.0,63926.0,0.005337]
[1719179031113,0.23926499,63927.0,63926.0,0.005337]
[1719179033223,0.18646499,63927.0,63926.0,0.005337]
[1719179033438,0.2392815,63927.0,63926.0,0.172137]
[1719179033627,0.33327473,63927.0,63926.0,0.172137]
[1719179033995,0.28047473,63927.0,63926.0,0.172137]
[1719179034451,0.33327473,63927.0,63926.0,0.172137]
[1719179036407,0.21886202,63927.0,63926.0,0.172137]
[1719179036641,0.33336593,63927.0,63926.0,0.307437]
[1719179036976,0.23937096,63927.0,63926.0,0.307437]
[1719179037207,0.33336592,63927.0,63926.0,0.307437]
[1719179038116,0.23937096,63927.0,63926.0,0.307437]
[1719179038618,0.35686467,63927.0,63926.0,0.307437]
[1719179039747,0.35692753,63927.0,63926.0,0.307437]
[1719179040396,0.18663382,63927.0,63926.0,0.307437]
[1719179040599,0.20049953,63927.0,63926.0,0.307437]
[1719179040828,0.35692753,63927.0,63926.0,0.307437]
[1719179041033,0.30412753,63927.0,63926.0,0.307437]
[1719179041986,0.30467198,63927.0,63926.0,0.307437]
[1719179042813,0.14824398,63927.0,63926.0,0.307437]
[1719179044458,0.03074283,63927.0,63926.0,0.307437]
[1719179044658,0.18717083,63927.0,63926.0,0.307437]
[1719179044808,0.16606202,63927.0,63926.0,0.307437]
[1719179045011,0.30550225,63927.0,63926.0,0.307437]
[1719179045423,0.30549343,63927.0,63926.0,0.307437]
[1719179045705,0.14906543,63927.0,63926.0,0.307437]
[1719179046692,0.14956601,63927.0,63926.0,0.307437]
[1719179046938,0.00963402,63927.0,63926.0,0.307437]
[1719179047140,0.14956599,63927.0,63926.0,0.307437]
[1719179048176,0.03192245,63927.0,63926.0,0.307437]
[1719179048426,0.14942593,63927.0,63926.0,0.307437]
[1719179049104,0.0528,63928.0,63926.0,0.307437]
[1719179049543,0.209226,63928.0,63926.0,0.307437]
[1719179050250,0.156426,63928.0,63926.0,0.305437]
[1719179050456,0.0528,63927.0,63926.0,0.02896285]
[1719179050858,0.164923,63929.0,63926.0,0.02896285]
[1719179051020,0.0528,63927.0,63926.0,0.02896285]
[1719179051220,0.0528,63927.0,63926.0,0.02996285]
[1719179051430,0.164923,63929.0,63926.0,0.002]
[1719179051630,0.0528,63927.0,63926.0,0.001]
[1719179051826,0.0528,63927.0,63926.0,0.002]
[1719179052027,0.0528,63927.0,63926.0,0.004]
[1719179053475,0.164923,63929.0,63926.0,0.004]
[1719179053789,0.0528,63927.0,63926.0,0.004]
[1719179054840,0.0528,63927.0,63926.0,0.002]
[1719179055605,0.164923,63929.0,63926.0,0.002]
[1719179055966,0.0528,63927.0,63926.0,0.002]
[1719179056190,0.209228,63927.0,63926.0,0.002]
[1719179056566,0.209228,63927.0,63926.0,0.004]
[1719179056765,0.21684109,63927.0,63926.0,0.004]
[1719179057329,0.21684109,63927.0,63926.0,0.002]
[1719179057531,0.28154625,63927.0,63926.0,0.003]
[1719179057737,0.33434625,63927.0,63926.0,0.003]
[1719179057941,0.33434625,63927.0,63926.0,0.002]
[1719179058142,0.33434625,63927.0,63926.0,0.005]
[1719179058342,0.33434625,63927.0,63926.0,0.003]
[1719179058836,0.49534625,63927.0,63926.0,0.007]
[1719179059053,0.51671317,63927.0,63926.0,0.007]
[1719179059297,0.46391317,63927.0,63926.0,0.007]
[1719179059502,0.35571317,63927.0,63926.0,0.007]
[1719179060384,0.21684109,63927.0,63926.0,0.007]
[1719179060589,0.35567233,63927.0,63926.0,0.007]
[1719179061571,0.19924433,63927.0,63926.0,0.45483]
[1719179061800,0.08173916,63927.0,63926.0,0.767691]
[1719179062741,0.08173916,63927.0,63926.0,0.2984]
[1719179063526,0.06041309,63927.0,63926.0,0.2984]
[1719179063692,0.08162176,63927.0,63926.0,0.2984]
[1719179063906,0.06041309,63927.0,63926.0,0.2984]
[1719179064109,0.08162176,63927.0,63926.0,0.2984]
[1719179064328,0.08475362,63927.0,63926.0,0.2984]
[1719179065406,0.08476113,63927.0,63926.0,0.2984]
[1719179066583,0.08475562,63927.0,63926.0,0.2984]
[1719179069612,0.06354495,63927.0,63926.0,0.2984]
[1719179069818,0.20195761,63927.0,63926.0,0.2984]
[1719179070836,0.14915761,63927.0,63926.0,0.92025212]
[1719179071337,0.02090664,63927.0,63926.0,0.92025212]
[1719179072061,0.02090664,63927.0,63926.0,0.94025212]
[1719179072966,0.170304,63928.0,63927.0,0.459628]
[1719179073331,0.20615645,63928.0,63927.0,0.459628]
[1719179074450,0.15335645,63928.0,63927.0,0.461628]
[1719179074750,0.2064135,63928.0,63927.0,0.461628]
[1719179074950,0.2064135,63928.0,63927.0,0.463628]
[1719179076022,0.08891016,63928.0,63927.0,0.463628]
[1719179076133,0.20641322,63928.0,63927.0,0.463628]
[1719179076356,0.15361322,63928.0,63927.0,0.776484]
[1719179076534,0.15361322,63928.0,63927.0,0.796484]
[1719179076535,0.20641322,63928.0,63927.0,0.796484]
[1719179076755,0.15361322,63928.0,63927.0,0.796484]
[1719179077382,0.20641322,63928.0,63927.0,0.483628]
[1719179078036,0.20641322,63928.0,63927.0,0.463628]
[1719179078240,0.20641322,63928.0,63927.0,0.483628]
[1719179079080,0.08940591,63928.0,63927.0,0.483628]
[1719179079575,0.03660591,63928.0,63927.0,0.483628]
[1719179079779,0.08940591,63928.0,63927.0,0.463628]
[1719179080018,0.08940591,63928.0,63927.0,0.483628]
[1719179080459,0.08940591,63928.0,63927.0,0.463628]
[1719179081173,0.15410727,63928.0,63927.0,0.483628]
[1719179081358,0.08940591,63928.0,63927.0,0.483628]
[1719179081874,0.20690727,63928.0,63927.0,0.483628]
[1719179082077,0.06662186,63928.0,63927.0,0.463628]
[1719179082286,0.20663761,63928.0,63927.0,0.463628]
[1719179082485,0.19281575,63928.0,63927.0,0.463628]
[1719179082689,0.15384027,63928.0,63927.0,0.463628]
[1719179082838,0.15384027,63928.0,63927.0,0.483628]
[1719179083039,0.20664027,63928.0,63927.0,0.483628]
[1719179084245,0.15384027,63928.0,63927.0,0.483628]
[1719179084432,0.20664027,63928.0,63927.0,0.483628]
[1719179085281,0.207492,63928.0,63927.0,0.483628]
[1719179086508,0.08998823,63928.0,63927.0,0.483628]
[1719179087082,0.08998823,63928.0,63927.0,0.463628]
[1719179087490,0.03718823,63928.0,63927.0,0.463628]
[1719179087905,0.03718823,63928.0,63927.0,0.483628]
[1719179088548,0.03721602,63928.0,63927.0,0.483628]
[1719179090330,0.03721602,63928.0,63927.0,0.796484]
[1719179090547,0.02339202,63928.0,63927.0,0.483628]
[1719179090946,0.03721602,63928.0,63927.0,0.483628]
[1719179091355,0.03806602,63928.0,63927.0,0.483628]
[1719179092198,0.03844341,63928.0,63927.0,0.483628]
[1719179093425,0.03842997,63928.0,63927.0,0.483628]
[1719179093624,0.03842997,63928.0,63927.0,0.796484]
[1719179093827,0.03842997,63928.0,63927.0,0.483628]
[1719179094031,0.03842997,63928.0,63927.0,0.463628]
[1719179094232,0.03842997,63928.0,63927.0,0.483628]
[1719179094726,0.03878275,63928.0,63927.0,0.463628]
[1719179094922,0.03878275,63928.0,63927.0,0.483628]
[1719179096048,0.03878275,63928.0,63927.0,0.463628]
[1719179096250,0.03878275,63928.0,63927.0,0.483628]
[1719179096669,0.03878275,63928.0,63927.0,0.463628]
[1719179096881,0.03878275,63928.0,63927.0,0.483628]
[1719179097424,0.13277911,63928.0,63927.0,0.483628]
[1719179097745,0.10866955,63928.0,63927.0,0.483628]
[1719179097946,0.13258365,63928.0,63927.0,0.483628]
[1719179100285,0.13258365,63928.0,63927.0,0.796484]
[1719179100480,0.11875965,63928.0,63927.0,0.796484]
[1719179100673,0.10866639,63928.0,63927.0,0.796484]
[1719179100914,0.13226558,63928.0,63927.0,0.796484]
[1719179101429,0.13342615,63928.0,63927.0,0.796484]
[1719179101782,0.0394337,63928.0,63927.0,0.796484]
[1719179103057,0.0394337,63928.0,63927.0,0.483628]
[1719179103058,0.014674,63928.0,63927.0,0.483628]
[1719179103264,0.014674,63928.0,63927.0,0.024]
[1719179103265,0.13290223,63928.0,63927.0,0.024]
[1719179103486,0.03891888,63928.0,63927.0,0.024]
[1719179103932,0.50819488,63928.0,63927.0,0.004]
[1719179104777,1.17913161,63928.0,63927.0,0.004]
[1719179106229,1.17573952,63928.0,63927.0,0.004]
[1719179106972,1.03740623,63928.0,63927.0,0.004]
[1719179107178,1.17585439,63928.0,63927.0,0.004]
[1719179109445,1.17583523,63928.0,63927.0,0.004]
[1719179109867,1.03740623,63928.0,63927.0,0.004]
[1719179110073,1.1154253,63928.0,63927.0,0.004]
[1719179112559,1.11591657,63928.0,63927.0,0.004]
[1719179115552,1.03740623,63928.0,63927.0,0.004]
[1719179115759,1.11590159,63928.0,63927.0,0.004]
[1719179116177,1.11590159,63928.0,63927.0,0.002]
[1719179116671,1.11590159,63928.0,63927.0,0.003]
[1719179117944,1.11590159,63928.0,63927.0,0.002]
[1719179118565,1.03740623,63928.0,63927.0,0.002]
[1719179118788,1.11280915,63928.0,63927.0,0.002]
[1719179119204,1.05700467,63928.0,63927.0,0.002]
[1719179119413,1.11280915,63928.0,63927.0,0.004]
[1719179120239,1.16560915,63928.0,63927.0,0.004]
[1719179120442,1.16550134,63928.0,63927.0,0.004]
[1719179121271,1.10974945,63928.0,63927.0,0.004]
[1719179121866,1.1090945,63928.0,63927.0,0.004]
[1719179124728,0.93799027,63928.0,63927.0,0.004]
[1719179124939,1.10476395,63928.0,63927.0,0.004]
[1719179125343,1.05196395,63928.0,63927.0,0.004]
[1719179125606,1.10476395,63928.0,63927.0,0.004]
[1719179127750,1.08710465,63928.0,63927.0,0.004]
[1719179127956,1.10454849,63928.0,63927.0,0.004]
[1719179128271,1.15830099,63928.0,63927.0,0.004]
[1719179128472,1.15895665,63928.0,63927.0,0.004]
[1719179129828,1.15971258,63928.0,63927.0,0.004]
[1719179130955,1.08710465,63928.0,63927.0,0.004]
[1719179131163,1.15972243,63928.0,63927.0,0.004]
[1719179131787,1.16880578,63928.0,63927.0,0.004]
[1719179131991,1.28626073,63928.0,63927.0,0.004]
[1719179132200,1.16883777,63928.0,63927.0,0.004]
[1719179132949,1.09653777,63928.0,63927.0,0.004]
[1719179134108,1.09650423,63928.0,63927.0,0.004]
[1719179136150,1.09460423,63928.0,63927.0,0.004]
[1719179136301,1.19460423,63928.0,63927.0,0.004]
[1719179137287,1.121988,63928.0,63927.0,0.004]
[1719179137475,1.19469605,63928.0,63927.0,0.004]
[1719179139126,1.19466069,63928.0,63927.0,0.004]
[1719179140392,1.121988,63928.0,63927.0,0.004]
[1719179140595,1.19465911,63928.0,63927.0,0.004]
[1719179141257,1.50751011,63928.0,63927.0,0.004]
[1719179142916,1.49927774,63928.0,63927.0,0.004]
[1719179143502,1.48094616,63928.0,63927.0,0.004]
[1719179143706,1.49900559,63928.0,63927.0,0.004]
[1719179145699,1.50420559,63928.0,63927.0,0.004]
[1719179145905,1.45140559,63928.0,63927.0,0.004]
[1719179146049,1.50420559,63928.0,63927.0,0.004]
[1719179146446,1.44754698,63928.0,63927.0,0.004]
[1719179146696,1.49967809,63928.0,63927.0,0.004]
[1719179148292,1.50410663,63928.0,63927.0,0.004]
[1719179148460,1.57175379,63928.0,63927.0,0.004]
[1719179149207,1.57175379,63928.0,63927.0,0.002]
[1719179149699,1.57406073,63928.0,63927.0,0.002]
[1719179150436,1.57406073,63928.0,63926.0,0.000935]
[1719179150437,1.094996,63927.0,63926.0,0.000935]
[1719179150641,1.2629501,63927.0,63926.0,0.000935]
[1719179150863,1.27533857,63927.0,63926.0,0.000935]
[1719179151065,1.41629022,63927.0,63926.0,0.000935]
[1719179152708,1.20738447,63927.0,63926.0,0.000935]
[1719179152914,1.72808379,63927.0,63926.0,0.000935]
[1719179154374,1.73008379,63927.0,63926.0,0.000935]
[1719179155297,1.58913556,63927.0,63926.0,0.000935]
[1719179155553,1.73208379,63927.0,63926.0,0.000935]
[1719179155935,1.52424047,63927.0,63926.0,0.000935]
[1719179156149,1.74725783,63927.0,63926.0,0.000935]
[1719179156383,1.55468081,63927.0,63926.0,0.000935]
[1719179156589,1.62931829,63927.0,63926.0,0.000935]
[1719179157749,1.62926928,63927.0,63926.0,0.000935]
[1719179158997,1.56246064,63927.0,63926.0,0.000935]
[1719179159135,1.63017053,63927.0,63926.0,0.000935]
[1719179161483,1.63030269,63927.0,63926.0,0.000935]
[1719179161883,1.65679583,63927.0,63926.0,0.000935]
[1719179162646,1.63379583,63927.0,63926.0,0.000935]
[1719179162848,1.37373983,63927.0,63926.0,0.000935]
[1719179163047,1.46183249,63927.0,63926.0,0.140835]
[1719179163270,1.51463249,63927.0,63926.0,0.140835]
[1719179163858,1.49941232,63927.0,63926.0,0.140835]
[1719179164572,1.35808389,63927.0,63926.0,0.140835]
[1719179165093,1.43156072,63927.0,63926.0,0.140835]
[1719179165309,1.35808609,63927.0,63926.0,0.140835]
[1719179165906,1.60338609,63927.0,63926.0,0.000935]
[1719179166104,1.7442692,63927.0,63926.0,0.000935]
[1719179166306,1.66774171,63927.0,63926.0,0.000935]
[1719179166659,1.49914171,63927.0,63926.0,0.000935]
[1719179167292,1.49912793,63927.0,63926.0,0.000935]
[1719179167489,1.67468905,63927.0,63926.0,0.000935]
[1719179167697,1.84398829,63927.0,63926.0,0.000935]
[1719179168096,2.15684429,63927.0,63926.0,0.000935]
[1719179169418,2.23354429,63927.0,63926.0,0.000935]
[1719179170829,2.26596501,63927.0,63926.0,0.000935]
[1719179171066,2.19214028,63927.0,63926.0,0.000935]
[1719179171276,2.21473321,63927.0,63926.0,0.000935]
[1719179171932,2.19214028,63927.0,63926.0,0.000935]
[1719179174014,2.19895822,63927.0,63926.0,0.000935]
[1719179174361,2.19703445,63927.0,63926.0,0.000935]
[1719179174507,2.19703445,63927.0,63926.0,0.001935]
[1719179174508,2.20503446,63927.0,63926.0,0.001935]
[1719179174879,2.22292137,63927.0,63926.0,0.001935]
[1719179175541,2.22792137,63927.0,63926.0,0.002935]
[1719179176237,2.63487737,63927.0,63926.0,0.002935]
[1719179177070,2.56093764,63927.0,63926.0,0.002935]
[1719179177277,2.6348444,63927.0,63926.0,0.002935]
[1719179177478,2.3219884,63927.0,63926.0,0.002935]
[1719179179280,2.7348444,63927.0,63926.0,0.002935]
[1719179179891,2.7350081,63927.0,63926.0,0.002935]
[1719179180134,2.56093764,63927.0,63926.0,0.002935]
[1719179180331,2.63502046,63927.0,63926.0,0.002935]
[1719179183143,2.83502046,63927.0,63926.0,0.002935]
[1719179183356,2.56093764,63927.0,63926.0,0.002935]
[1719179183560,2.83528189,63927.0,63926.0,0.002935]
[1719179183773,2.76093764,63927.0,63926.0,0.002935]
[1719179183976,2.83528189,63927.0,63926.0,0.002935]
[1719179185216,2.81738851,63927.0,63926.0,0.002935]
[1719179186510,2.81750842,63927.0,63926.0,0.002935]
[1719179189497,2.79841702,63927.0,63926.0,0.002935]
[1719179189753,2.8175016,63927.0,63926.0,0.002935]
[1719179191141,2.59906262,63927.0,63926.0,0.002935]
[1719179191302,2.75549062,63927.0,63926.0,0.002935]
[1719179192289,2.90804476,63927.0,63926.0,0.002935]
[1719179192678,2.83359389,63927.0,63926.0,0.002935]
[1719179192790,2.90803833,63927.0,63926.0,0.002935]
[1719179192992,3.06647936,63927.0,63926.0,0.002935]
[1719179193196,3.06648057,63927.0,63926.0,0.002935]
[1719179193708,3.16366261,63927.0,63926.0,0.002935]
[1719179194526,3.08697381,63927.0,63926.0,0.002935]
[1719179194882,2.98979177,63927.0,63926.0,0.002935]
[1719179195215,3.0870281,63927.0,63926.0,0.002935]
[1719179195768,2.91534662,63927.0,63926.0,0.002935]
[1719179195969,3.08716275,63927.0,63926.0,0.002935]
[1719179196126,3.03436275,63927.0,63926.0,0.002935]
[1719179196311,3.08716275,63927.0,63926.0,0.002935]
[1719179197340,2.68376359,63927.0,63926.0,0.002935]
[1719179198817,2.37266488,63927.0,63926.0,0.002935]
[1719179199022,2.684358,63927.0,63926.0,0.002935]
[1719179200995,2.515058,63927.0,63926.0,0.002935]
[1719179201301,2.315058,63927.0,63926.0,0.002935]
[1719179201844,1.507964,63922.0,63921.0,0.000935]
[1719179202069,1.507964,63922.0,63921.0,0.301735]
[1719179202070,1.87762512,63922.0,63921.0,0.301735]
[1719179202265,1.96511022,63922.0,63921.0,0.301735]
[1719179202615,1.96511082,63922.0,63921.0,0.301735]
[1719179203724,1.96611082,63922.0,63921.0,0.301735]
[1719179204624,2.12066496,63922.0,63921.0,0.301735]
[1719179205107,2.04555176,63922.0,63921.0,0.301735]
[1719179205308,2.12110802,63922.0,63921.0,0.301735]
[1719179207666,2.09802005,63922.0,63921.0,0.301735]
[1719179208245,2.09774186,63922.0,63921.0,0.301735]
[1719179211383,2.02246379,63922.0,63921.0,0.301735]
[1719179211583,2.09785853,63922.0,63921.0,0.301735]
[1719179211977,2.09785854,63922.0,63921.0,0.301735]
[1719179212214,2.41073954,63922.0,63921.0,0.000935]
[1719179212396,1.095202,63915.0,63914.0,0.3059]
[1719179212615,1.63988643,63915.0,63914.0,0.3059]
[1719179212812,1.51135884,63915.0,63914.0,0.3059]
[1719179212965,1.82427384,63915.0,63914.0,0.3059]
[1719179213170,1.8254815,63915.0,63914.0,0.3059]
[1719179213993,1.8334815,63915.0,63914.0,0.3069]
[1719179214398,1.8254815,63915.0,63914.0,0.3059]
[1719179214599,1.82558361,63915.0,63914.0,0.3059]
[1719179214798,1.83358361,63915.0,63914.0,0.3069]
[1719179214997,1.84158361,63915.0,63914.0,0.3079]
[1719179215198,1.98613775,63915.0,63914.0,0.001]
[1719179215400,1.83358361,63915.0,63914.0,0.001]
[1719179215627,1.84158361,63915.0,63914.0,0.002]
[1719179216054,1.84158361,63915.0,63914.0,0.1738]
[1719179217665,1.84181508,63915.0,63914.0,0.1738]
[1719179218220,1.84181508,63915.0,63914.0,0.002]
[1719179218464,1.99436922,63915.0,63914.0,0.002]
[1719179220479,1.99436922,63915.0,63914.0,0.002935]
[1719179220665,1.91743323,63915.0,63914.0,0.002935]
[1719179220908,1.99470078,63915.0,63914.0,0.002935]
[1719179221313,1.91743323,63915.0,63914.0,0.002935]
[1719179221484,1.99472023,63915.0,63914.0,0.002935]
[1719179222522,1.84216609,63915.0,63914.0,0.002935]
[1719179222727,1.84216609,63915.0,63914.0,0.311535]
[1719179223182,1.84207417,63915.0,63914.0,0.311535]
[1719179225587,1.86702392,63915.0,63914.0,0.311535]
[1719179227444,1.78982884,63915.0,63914.0,0.311535]
[1719179227705,1.9231337,63915.0,63914.0,0.311535]
[1719179228590,1.86690097,63915.0,63914.0,0.311535]
[1719179228912,1.81410097,63915.0,63914.0,0.311535]
[1719179229128,1.86690097,63915.0,63914.0,0.311535]
[1719179229327,1.78982884,63915.0,63914.0,0.311535]
[1719179229527,1.86733637,63915.0,63914.0,0.311535]
[1719179229871,1.81453637,63915.0,63914.0,0.311535]
[1719179230040,1.86733637,63915.0,63914.0,0.311535]
[1719179231461,1.81453637,63915.0,63914.0,0.311535]
[1719179231665,1.86733637,63915.0,63914.0,0.311535]
[1719179232476,2.06735019,63915.0,63914.0,0.311535]
[1719179233285,1.81455019,63915.0,63914.0,0.311535]
[1719179233486,2.23836222,63915.0,63914.0,0.002935]
[1719179233698,2.41456222,63915.0,63914.0,0.002935]
[1719179233893,2.21456222,63915.0,63914.0,0.002935]
[1719179234095,2.36176222,63915.0,63914.0,0.002935]
[1719179234296,2.21456222,63915.0,63914.0,0.002935]
[1719179234865,2.35973621,63915.0,63914.0,0.002935]
[1719179235716,2.36419757,63915.0,63914.0,0.002935]
[1719179236064,2.36419757,63915.0,63910.0,0.000935]
[1719179236065,1.508207,63911.0,63910.0,0.000935]
[1719179236271,1.91855083,63911.0,63910.0,0.000935]
[1719179236446,2.0593745,63911.0,63910.0,0.000935]
[1719179236660,2.07220454,63911.0,63910.0,0.000935]
[1719179237282,1.93538087,63911.0,63910.0,0.000935]
[1719179238246,1.93938087,63911.0,63910.0,0.000935]
[1719179238646,1.93994136,63911.0,63910.0,0.000935]
[1719179238855,2.08075448,63911.0,63910.0,0.000935]
[1719179239067,2.08075649,63911.0,63910.0,0.000935]
[1719179239704,1.98075649,63911.0,63910.0,0.000935]
[1719179239911,2.08075649,63911.0,63910.0,0.000935]
[1719179240247,2.25176852,63911.0,63910.0,0.000935]
[1719179240452,2.45176852,63911.0,63910.0,0.000935]
[1719179241441,2.25176852,63911.0,63910.0,0.000935]
[1719179241852,2.25198107,63911.0,63910.0,0.000935]
[1719179243343,2.27957803,63911.0,63910.0,0.000935]
[1719179243929,2.25198107,63911.0,63910.0,0.000935]
[1719179244892,2.08781521,63911.0,63910.0,0.000935]
[1719179245102,2.25198607,63911.0,63910.0,0.000935]
[1719179245715,2.74752107,63911.0,63910.0,0.000935]
[1719179245945,2.34720043,63911.0,63910.0,0.000935]
[1719179246297,2.48418924,63911.0,63910.0,0.000935]
[1719179246501,2.56110127,63911.0,63910.0,0.000935]
[1719179246701,2.48418924,63911.0,63910.0,0.000935]
[1719179246945,2.38418924,63911.0,63910.0,0.000935]
[1719179247150,2.48418924,63911.0,63910.0,0.000935]
[1719179247355,2.48418924,63911.0,63910.0,0.309335]
[1719179247356,2.11117746,63911.0,63910.0,0.309335]
[1719179247926,2.02841019,63911.0,63910.0,0.309335]
[1719179248171,2.11178907,63911.0,63910.0,0.309335]
[1719179248381,2.14376824,63911.0,63910.0,0.309335]
[1719179248551,2.2270045,63911.0,63910.0,0.309335]
[1719179250701,2.1270045,63911.0,63910.0,0.309335]
[1719179251141,2.04376824,63911.0,63910.0,0.309335]
[1719179251343,2.12704315,63911.0,63910.0,0.309335]
[1719179251567,2.07424315,63911.0,63910.0,0.309335]
[1719179251778,2.12704315,63911.0,63910.0,0.309335]
[1719179252526,2.07424315,63911.0,63910.0,0.309335]
[1719179252722,1.99733112,63911.0,63910.0,0.309335]
[1719179252931,2.05013112,63911.0,63910.0,0.309335]
[1719179253125,1.99733112,63911.0,63910.0,0.309335]
[1719179253398,2.22704315,63911.0,63910.0,0.000935]
[1719179253681,2.1116851,63911.0,63910.0,0.000935]
[1719179254393,2.02841019,63911.0,63910.0,0.000935]
[1719179254563,2.11609755,63911.0,63910.0,0.000935]
[1719179254795,2.26865169,63911.0,63910.0,0.000935]
[1719179255321,2.46865169,63911.0,63910.0,0.000935]
[1719179256325,2.26865169,63911.0,63910.0,0.000935]
[1719179256520,2.21585169,63911.0,63910.0,0.000935]
[1719179256729,2.26865169,63911.0,63910.0,0.000935]
[1719179256929,2.19173966,63911.0,63910.0,0.000935]
[1719179257431,2.19173966,63911.0,63910.0,0.167435]
[1719179257432,2.1040523,63911.0,63910.0,0.167435]
[1719179257652,2.19317767,63911.0,63910.0,0.167435]
[1719179257862,2.1040523,63911.0,63910.0,0.167435]
[1719179258074,2.19365922,63911.0,63910.0,0.167435]
[1719179258890,2.21777125,63911.0,63910.0,0.167435]
[1719179259101,2.21777125,63911.0,63910.0,0.000935]
[1719179259380,2.11801711,63911.0,63910.0,0.000935]
[1719179259520,2.11801711,63911.0,63910.0,0.313735]
[1719179260477,2.1182916,63911.0,63910.0,0.313735]
[1719179261288,2.27685444,63911.0,63910.0,0.313735]
[1719179263132,2.1182916,63911.0,63910.0,0.313735]
[1719179263334,2.15999241,63911.0,63910.0,0.313735]
[1719179263552,2.09711634,63911.0,63910.0,0.313735]
[1719179263850,2.15963512,63911.0,63910.0,0.313735]
[1719179264045,2.15963512,63911.0,63910.0,0.000935]
[1719179265301,2.26327463,63911.0,63910.0,0.000935]
[1719179266906,2.16327463,63911.0,63910.0,0.000935]
[1719179267148,2.26327463,63911.0,63910.0,0.000935]
[1719179267348,2.26328903,63911.0,63910.0,0.000935]
[1719179270750,2.25328903,63911.0,63910.0,0.000935]
[1719179271066,2.21158822,63911.0,63910.0,0.000935]
[1719179273028,2.21304727,63911.0,63910.0,0.000935]
[1719179274294,2.37163275,63911.0,63910.0,0.000935]
[1719179276057,2.17701141,63911.0,63910.0,0.000935]
[1719179276347,2.37167055,63911.0,63910.0,0.000935]
[1719179276552,2.01841019,63911.0,63910.0,0.000935]
[1719179276726,2.37167829,63911.0,63910.0,0.000935]
[1719179278957,2.21306933,63911.0,63910.0,0.000935]
[1719179279178,2.21316195,63911.0,63910.0,0.000935]
[1719179280475,2.21316195,63911.0,63910.0,0.177735]
[1719179280710,2.21316195,63911.0,63910.0,0.315435]
[1719179283842,2.13624992,63911.0,63910.0,0.315435]
[1719179284064,2.21316195,63911.0,63910.0,0.315435]
[1719179284681,2.2117194,63911.0,63910.0,0.315435]
[1719179285337,2.21169956,63911.0,63910.0,0.315435]
[1719179285962,2.13478753,63911.0,63910.0,0.315435]
[1719179286165,2.21169956,63911.0,63910.0,0.315435]
[1719179286626,2.21238652,63911.0,63910.0,0.315435]
[1719179287707,2.01926019,63911.0,63910.0,0.315435]
[1719179287947,2.21247407,63911.0,63910.0,0.315435]
[1719179289889,2.11247407,63911.0,63910.0,0.315435]
[1719179290097,2.21247407,63911.0,63910.0,0.315435]
[1719179290933,2.21251341,63911.0,63910.0,0.315435]
[1719179291176,2.11251341,63911.0,63910.0,0.315435]
[1719179291378,2.21251341,63911.0,63910.0,0.315435]
[1719179292978,2.11251341,63911.0,63910.0,0.315435]
[1719179293117,2.21251341,63911.0,63910.0,0.315435]
[1719179294142,2.21116941,63911.0,63910.0,0.315435]
[1719179294590,2.01926019,63911.0,63910.0,0.315435]
[1719179294744,2.21116901,63911.0,63910.0,0.315435]
[1719179295891,2.21148647,63911.0,63910.0,0.315435]
[1719179297189,2.21116503,63911.0,63910.0,0.315435]
[1719179298826,2.21116503,63911.0,63910.0,0.000935]
[1719179300433,2.21140917,63911.0,63910.0,0.000935]
[1719179301205,2.11140917,63911.0,63910.0,0.000935]
[1719179303196,2.03449714,63911.0,63910.0,0.000935]
[1719179303400,1.84234816,63911.0,63910.0,0.000935]
[1719179303608,2.03428046,63911.0,63910.0,0.000935]
[1719179305178,2.03427813,63911.0,63910.0,0.000935]
[1719179305607,1.94017813,63911.0,63910.0,0.317335]
[1719179306155,1.94017813,63911.0,63910.0,0.000935]
[1719179306838,1.93653044,63911.0,63910.0,0.000935]
[1719179307047,1.93653044,63911.0,63910.0,0.173535]
[1719179307764,1.93653044,63911.0,63910.0,0.317335]
[1719179309515,1.74460047,63911.0,63910.0,0.317335]
[1719179309724,1.93591545,63911.0,63910.0,0.317335]
[1719179312615,1.74460047,63911.0,63910.0,0.317335]
[1719179312770,1.93591846,63911.0,63910.0,0.317335]